fUST/lending_fUST_20250709
["ID","MTS","AMOUNT","RATE_DAILY","PERIOD"]
[370392471,1751992249905,-460.0,0.00022465,2]
[370392472,1751992249918,-460.0,0.00022465,2]
[370392473,1751992249932,-460.0,0.00022465,2]
[370392474,1751992249944,-681.56,0.00022465,2]
[370392475,1751992249957,-460.0,0.00022465,2]
[370392476,1751992249969,-460.0,0.00022465,2]
[370392477,1751992249981,-460.0,0.00022465,2]
[370392478,1751992249993,-1434.78,0.00022465,2]
[370392479,1751992250006,-1457.81,0.00022465,2]
[370392480,1751992250020,-1784.73,0.00022465,2]
[370392481,1751992250032,-460.0,0.00022465,2]
[370392482,1751992250044,-587.43,0.00022465,2]
[370392483,1751992250057,-2716.87,0.00022465,2]
[370392484,1751992250069,-629.94,0.00022465,2]
[370392485,1751992250081,-461.84,0.00022465,2]
[370392486,1751992250093,-549.3,0.00022465,2]
[370392487,1751992250107,-460.0,0.00022465,2]
[370392488,1751992250120,-1648.56,0.00022465,2]
[370392489,1751992250132,-469.4,0.00022465,2]
[370392490,1751992250144,-1886.3,0.00022465,2]
[370392491,1751992250154,-460.0,0.00022465,2]
[370392492,1751992250164,-2050.81,0.00022465,2]
[370392493,1751992250181,-460.0,0.00022465,2]
[370392494,1751992250191,-896.86,0.00022465,2]
[370392495,1751992250202,-829.92,0.00022465,2]
[370392496,1751992250215,-1118.24,0.00022465,2]
[370392497,1751992250227,-460.0,0.00022465,2]
[370392498,1751992250240,-1411.62,0.00022465,2]
[370392499,1751992250251,-460.0,0.00022465,2]
[370392500,1751992250264,-460.0,0.00022465,2]
[370392501,1751992250276,-460.0,0.00022465,2]
[370392502,1751992250289,-460.0,0.00022465,2]
[370392503,1751992250301,-460.0,0.00022465,2]
[370392504,1751992250314,-883.03,0.00022465,2]
[370392505,1751992250325,-500.0,0.00022479,2]
[370392506,1751992250335,-501.48972645,0.00022479,2]
[370392507,1751992250345,-460.0,0.00022521,2]
[370392508,1751992250356,-1246.82,0.00022521,2]
[370392509,1751992250367,-612.3,0.00022521,2]
[370392510,1751992250381,-938.89,0.00022521,2]
[370392511,1751992250393,-485.05,0.00022521,2]
[370392512,1751992250406,-2087.06,0.00022521,2]
[370392513,1751992250416,-460.0,0.00022521,2]
[370392514,1751992250428,-862.67,0.00022521,2]
[370392515,1751992250439,-150.0,0.00022543,2]
[370392516,1751992250450,-1870.00093232,0.0002259,7]
[370392517,1751992250463,-1611.14,0.00022617,3]
[370392518,1751992250474,-2000.0,0.000227,2]
[370392519,1751992250484,-2000.0,0.000227,2]
[370392520,1751992250494,-1611.14,0.00022717,5]
[370392521,1751992250504,-460.0,0.00022739,2]
[370392522,1751992250515,-460.0,0.00022739,2]
[370392523,1751992250526,-460.0,0.00022739,2]
[370392524,1751992250536,-681.56,0.00022739,2]
[370392525,1751992250547,-460.0,0.00022739,2]
[370392526,1751992250558,-228.86,0.00022739,2]
[370392527,1751992250569,-460.0,0.00022739,2]
[370392528,1751992250581,-1434.78,0.00022739,2]
[370392529,1751992250592,-1457.81,0.00022739,2]
[370392530,1751992250603,-1784.73,0.00022739,2]
[370392531,1751992250614,-460.0,0.00022739,2]
[370392532,1751992250625,-587.43,0.00022739,2]
[370392533,1751992250637,-2716.87,0.00022739,2]
[370392534,1751992250647,-629.94,0.00022739,2]
[370392535,1751992250658,-461.84,0.00022739,2]
[370392536,1751992250669,-549.3,0.00022739,2]
[370392537,1751992250681,-1648.56,0.00022739,2]
[370392538,1751992250692,-460.0,0.00022739,2]
[370392539,1751992250703,-469.4,0.00022739,2]
[370392540,1751992250713,-1886.3,0.00022739,2]
[370392541,1751992250724,-460.0,0.00022739,2]
[370392542,1751992250735,-2050.81,0.00022739,2]
[370392543,1751992250748,-460.0,0.00022739,2]
[370392544,1751992250760,-896.86,0.00022739,2]
[370392545,1751992250771,-829.92,0.00022739,2]
[370392546,1751992250783,-1118.24,0.00022739,2]
[370392547,1751992250795,-460.0,0.00022739,2]
[370392548,1751992250807,-1411.62,0.00022739,2]
[370392549,1751992250819,-460.0,0.00022739,2]
[370392550,1751992250834,-460.0,0.00022739,2]
[370392551,1751992250845,-460.0,0.00022739,2]
[370392552,1751992250856,-190.91434052,0.00022739,2]
[370392553,1751992250867,-460.0,0.00022739,2]
[370392554,1751992250878,-883.03,0.00022739,2]
[370392555,1751992250889,-151.0,0.00022761,6]
[370392556,1751992250901,-587.0,0.00022776,2]
[370392557,1751992250912,-1000.0,0.00022789,2]
[370392558,1751992250923,-1003.64477649,0.00022789,2]
[370392559,1751992250934,-1000.0,0.00022789,2]
[370392560,1751992250946,-1200.0,0.00022789,2]
[370392561,1751992250957,-502.58896689,0.00022789,2]
[370392562,1751992250968,-1000.0,0.00022789,2]
[370392563,1751992250979,-1000.0,0.00022789,2]
[370392564,1751992250991,-460.0,0.00022795,2]
[370392565,1751992251002,-1246.82,0.00022795,2]
[370392566,1751992251014,-612.3,0.00022795,2]
[370392567,1751992251025,-938.89,0.00022795,2]
[370392568,1751992251036,-485.05,0.00022795,2]
[370392569,1751992251046,-2087.06,0.00022795,2]
[370392570,1751992251055,-460.0,0.00022795,2]
[370392571,1751992251065,-862.67,0.00022795,2]
[370392572,1751992251074,-162.898237,0.00022796,2]
[370392573,1751992251084,-1870.00093232,0.00022797,7]
[370392574,1751992251093,-151.0,0.000228,8]
[370392575,1751992251102,-1611.14,0.00022817,3]
[370392576,1751992251111,-12586.7184932,0.000229,3]
[370392577,1751992251121,-160.0,0.000229,3]
[370392578,1751992251130,-848.40570879,0.000229,3]
[370392579,1751992251139,-214.10276668,0.000229,3]
[370392580,1751992251149,-1611.14,0.00022917,6]
[370392581,1751992251158,-230.51100374,0.00023,3]
[370392582,1751992251167,-215.2437778,0.00023,3]
[370392583,1751992251178,-160.0,0.00023,3]
[370392584,1751992251188,-160.0,0.00023,3]
[370392585,1751992251198,-837.89306043,0.00023,3]
[370392586,1751992251208,-1870.00093232,0.00023003,8]
[370392587,1751992251218,-460.0,0.00023013,2]
[370392588,1751992251227,-460.0,0.00023013,2]
[370392589,1751992251237,-460.0,0.00023013,2]
[370392590,1751992251246,-681.56,0.00023013,2]
[370392591,1751992251256,-460.0,0.00023013,2]
[370392592,1751992251266,-460.0,0.00023013,2]
[370392593,1751992251280,-1434.78,0.00023013,2]
[370392594,1751992251290,-1457.81,0.00023013,2]
[370392595,1751992251299,-1784.73,0.00023013,2]
[370392596,1751992251309,-460.0,0.00023013,2]
[370392597,1751992251319,-587.43,0.00023013,2]
[370392598,1751992251329,-2716.87,0.00023013,2]
[370392599,1751992251339,-629.94,0.00023013,2]
[370392600,1751992251349,-461.84,0.00023013,2]
[370392601,1751992251359,-549.3,0.00023013,2]
[370392602,1751992251369,-1648.56,0.00023013,2]
[370392603,1751992251380,-460.0,0.00023013,2]
[370392604,1751992251390,-469.4,0.00023013,2]
[370392605,1751992251400,-1886.3,0.00023013,2]
[370392606,1751992251410,-460.0,0.00023013,2]
[370392607,1751992251420,-2050.81,0.00023013,2]
[370392608,1751992251429,-460.0,0.00023013,2]
[370392609,1751992251439,-896.86,0.00023013,2]
[370392610,1751992251449,-829.92,0.00023013,2]
[370392611,1751992251458,-1118.24,0.00023013,2]
[370392612,1751992251468,-460.0,0.00023013,2]
[370392613,1751992251477,-1411.62,0.00023013,2]
[370392614,1751992251758,-462.71880422,0.00023013,2]
[370392615,1751992251768,-460.0,0.00023013,2]
[370392616,1751992251778,-460.0,0.00023013,2]
[370392617,1751992251787,-460.0,0.00023013,2]
[370392618,1751992251796,-883.03,0.00023013,2]
[370392619,1751992251809,-214.0,0.00023014,7]
[370392620,1751992251819,-1611.14,0.00023017,5]
[370392621,1751992251833,-215.0738,0.00023046,2]
[370392622,1751992251843,-168.0,0.00023054,2]
[370392623,1751992251852,-605.3120962,0.00023056,2]
[370392624,1751992251862,-153.0,0.00023068,2]
[370392625,1751992251873,-460.0,0.00023069,2]
[370392626,1751992251884,-1246.82,0.00023069,2]
[370392627,1751992251896,-612.3,0.00023069,2]
[370392628,1751992251906,-938.89,0.00023069,2]
[370392629,1751992251915,-485.05,0.00023069,2]
[370392630,1751992251926,-2087.06,0.00023069,2]
[370392631,1751992251936,-460.0,0.00023069,2]
[370392632,1751992251945,-862.67,0.00023069,2]
[370392633,1751992251955,-1611.14,0.00023117,2]
[370392634,1751992251964,-174.46404101,0.00023137,2]
[370392635,1751992251974,-151.0,0.00023146,6]
[370392636,1751992251983,-1870.00093232,0.0002321,8]
[370392637,1751992251993,-1611.14,0.00023217,7]
[370392638,1751992252002,-460.0,0.00023287,2]
[370392639,1751992252013,-460.0,0.00023287,2]
[370392640,1751992252022,-460.0,0.00023287,2]
[370392641,1751992252031,-681.56,0.00023287,2]
[370392642,1751992252041,-460.0,0.00023287,2]
[370392643,1751992252050,-460.0,0.00023287,2]
[370392644,1751992252060,-1434.78,0.00023287,2]
[370392645,1751992252069,-1457.81,0.00023287,2]
[370392646,1751992252079,-1784.73,0.00023287,2]
[370392647,1751992252088,-525.83417949,0.00023287,2]
[370392648,1751992252097,-587.43,0.00023287,2]
[370392649,1751992252107,-2716.87,0.00023287,2]
[370392650,1751992252116,-629.94,0.00023287,2]
[370392651,1751992252125,-461.84,0.00023287,2]
[370392652,1751992252134,-549.3,0.00023287,2]
[370392653,1751992252143,-1648.56,0.00023287,2]
[370392654,1751992252153,-460.0,0.00023287,2]
[370392655,1751992252162,-469.4,0.00023287,2]
[370392656,1751992252172,-1886.3,0.00023287,2]
[370392657,1751992252184,-460.0,0.00023287,2]
[370392658,1751992252194,-2050.81,0.00023287,2]
[370392659,1751992252203,-460.0,0.00023287,2]
[370392660,1751992252213,-896.86,0.00023287,2]
[370392661,1751992252222,-829.92,0.00023287,2]
[370392662,1751992252232,-1118.24,0.00023287,2]
[370392663,1751992252241,-460.0,0.00023287,2]
[370392664,1751992252252,-1411.62,0.00023287,2]
[370392665,1751992252261,-460.0,0.00023287,2]
[370392666,1751992252272,-460.0,0.00023287,2]
[370392667,1751992252283,-473.25185605,0.00023287,2]
[370392668,1751992252292,-883.03,0.00023287,2]
[370392669,1751992252302,-1611.14,0.00023317,7]
[370392670,1751992252312,-1500.0,0.00023337,2]
[370392671,1751992252321,-1500.0,0.00023337,2]
[370392672,1751992252331,-1200.0,0.00023337,2]
[370392673,1751992252341,-702.85623129,0.00023337,2]
[370392674,1751992252352,-168.0,0.00023341,2]
[370392675,1751992252363,-460.0,0.00023343,2]
[370392676,1751992252372,-1246.82,0.00023343,2]
[370392677,1751992252381,-612.3,0.00023343,2]
[370392678,1751992252391,-938.89,0.00023343,2]
[370392679,1751992252402,-485.05,0.00023343,2]
[370392680,1751992252411,-2087.06,0.00023343,2]
[370392681,1751992252422,-460.0,0.00023343,2]
[370392682,1751992252433,-862.67,0.00023343,2]
[370392683,1751992252444,-214.10276668,0.000234,7]
[370392684,1751992252454,-1870.00093232,0.00023417,9]
[370392685,1751992252463,-1611.14,0.00023417,2]
[370392686,1751992252473,-168.0,0.00023422,2]
[370392687,1751992252482,-151.0,0.000235,5]
[370392688,1751992252492,-1611.14,0.00023517,3]
[370392689,1751992252502,-151.0,0.00023531,6]
[370392690,1751992252512,-257.49,0.00023561,2]
[370392691,1751992252523,-460.0,0.00023561,2]
[370392692,1751992252533,-460.0,0.00023561,2]
[370392693,1751992252543,-681.56,0.00023561,2]
[370392694,1751992252552,-460.0,0.00023561,2]
[370392695,1751992252563,-460.0,0.00023561,2]
[370392696,1751992252573,-1434.78,0.00023561,2]
[370392697,1751992252582,-1457.81,0.00023561,2]
[370392698,1751992252591,-1784.73,0.00023561,2]
[370392699,1751992252601,-587.43,0.00023561,2]
[370392700,1751992252611,-2716.87,0.00023561,2]
[370392701,1751992252621,-629.94,0.00023561,2]
[370392702,1751992252630,-461.84,0.00023561,2]
[370392703,1751992252639,-549.3,0.00023561,2]
[370392704,1751992252650,-1648.56,0.00023561,2]
[370392705,1751992252659,-460.0,0.00023561,2]
[370392706,1751992252669,-469.4,0.00023561,2]
[370392707,1751992252679,-1886.3,0.00023561,2]
[370392708,1751992252688,-460.0,0.00023561,2]
[370392709,1751992252698,-2050.81,0.00023561,2]
[370392710,1751992252708,-513.48011574,0.00023561,2]
[370392711,1751992252717,-896.86,0.00023561,2]
[370392712,1751992252739,-829.92,0.00023561,2]
[370392713,1751992252750,-1118.24,0.00023561,2]
[370392714,1751992252760,-460.0,0.00023561,2]
[370392715,1751992252771,-1411.62,0.00023561,2]
[370392716,1751992252781,-460.0,0.00023561,2]
[370392717,1751992252791,-460.0,0.00023561,2]
[370392718,1751992252802,-883.03,0.00023561,2]
[370392719,1751992252813,-168.0,0.00023609,2]
[370392720,1751992252824,-460.0,0.00023617,2]
[370392721,1751992252838,-1246.82,0.00023617,2]
[370392722,1751992252849,-612.3,0.00023617,2]
[370392723,1751992252860,-938.89,0.00023617,2]
[370392724,1751992252870,-485.05,0.00023617,2]
[370392725,1751992252882,-2087.06,0.00023617,2]
[370392726,1751992252893,-460.0,0.00023617,2]
[370392727,1751992252903,-862.67,0.00023617,2]
[370392728,1751992252913,-1611.14,0.00023617,5]
[370392729,1751992252924,-1870.00093232,0.00023624,9]
[370392730,1751992252936,-652.0,0.00023671,2]
[370392731,1751992252946,-2000.0,0.000237,2]
[370392732,1751992252957,-2000.0,0.000237,2]
[370392733,1751992252967,-1611.14,0.00023717,3]
[370392734,1751992252978,-652.0,0.00023736,2]
[370392735,1751992252988,-652.0,0.00023787,2]
[370392736,1751992252999,-652.0,0.00023788,2]
[370392737,1751992253009,-652.0,0.00023789,2]
[370392738,1751992253020,-1611.14,0.00023817,5]
[370392739,1751992253030,-1870.00093232,0.00023831,10]
[370392740,1751992253040,-326.03809917,0.00023835,2]
[370392741,1751992253050,-460.0,0.00023835,2]
[370392742,1751992253061,-681.56,0.00023835,2]
[370392743,1751992253071,-460.0,0.00023835,2]
[370392744,1751992253082,-460.0,0.00023835,2]
[370392745,1751992253092,-1434.78,0.00023835,2]
[370392746,1751992253102,-1457.81,0.00023835,2]
[370392747,1751992253113,-1784.73,0.00023835,2]
[370392748,1751992253124,-587.43,0.00023835,2]
[370392749,1751992253135,-2716.87,0.00023835,2]
[370392750,1751992253145,-629.94,0.00023835,2]
[370392751,1751992253156,-549.3,0.00023835,2]
[370392752,1751992253166,-461.84,0.00023835,2]
[370392753,1751992253175,-1648.56,0.00023835,2]
[370392754,1751992253189,-460.0,0.00023835,2]
[370392755,1751992253199,-469.4,0.00023835,2]
[370392756,1751992253209,-1886.3,0.00023835,2]
[370392757,1751992253218,-451.0924596,0.00023835,2]
[370392758,1751992253228,-2050.81,0.00023835,2]
[370392759,1751992253238,-896.86,0.00023835,2]
[370392760,1751992253248,-829.92,0.00023835,2]
[370392761,1751992253258,-1118.24,0.00023835,2]
[370392762,1751992253268,-460.0,0.00023835,2]
[370392763,1751992253278,-1411.62,0.00023835,2]
[370392764,1751992253288,-460.0,0.00023835,2]
[370392765,1751992253298,-460.0,0.00023835,2]
[370392766,1751992253307,-883.03,0.00023835,2]
[370392767,1751992253318,-774.57840939,0.00023885,2]
[370392768,1751992253329,-1000.0,0.00023885,2]
[370392769,1751992253339,-305.85372088,0.00023891,2]
[370392770,1751992253349,-1246.82,0.00023891,2]
[370392771,1751992253359,-612.3,0.00023891,2]
[370392772,1751992253369,-938.89,0.00023891,2]
[370392773,1751992253378,-485.05,0.00023891,2]
[370392774,1751992253388,-2087.06,0.00023891,2]
[370392775,1751992253398,-460.0,0.00023891,2]
[370392776,1751992253409,-862.67,0.00023891,2]
[370392777,1751992253418,-150.0,0.000239,2]
[370392778,1751992253428,-151.0,0.00023916,6]
[370392779,1751992253439,-1611.14,0.00023917,5]
[370392780,1751992253449,-230.51100374,0.00024,7]
[370392781,1751992253460,-215.2437778,0.00024,7]
[370392782,1751992253473,-160.0,0.00024,7]
[370392783,1751992253483,-837.89306043,0.00024,7]
[370392784,1751992253494,-1611.14,0.00024017,4]
[370392785,1751992253504,-652.0,0.00024026,2]
[370392786,1751992253515,-1870.00093232,0.00024038,10]
[370392787,1751992253524,-151.0,0.000241,9]
[370392788,1751992253535,-261.5030251,0.00024109,2]
[370392789,1751992253545,-681.56,0.00024109,2]
[370392790,1751992253555,-460.0,0.00024109,2]
[370392791,1751992253565,-460.0,0.00024109,2]
[370392792,1751992253575,-1434.78,0.00024109,2]
[370392793,1751992253585,-1457.81,0.00024109,2]
[370392794,1751992253597,-1784.73,0.00024109,2]
[370392795,1751992253607,-587.43,0.00024109,2]
[370392796,1751992253618,-2716.87,0.00024109,2]
[370392797,1751992253628,-629.94,0.00024109,2]
[370392798,1751992253638,-549.3,0.00024109,2]
[370392799,1751992253648,-461.84,0.00024109,2]
[370392800,1751992253658,-1648.56,0.00024109,2]
[370392801,1751992253668,-460.0,0.00024109,2]
[370392802,1751992253679,-469.4,0.00024109,2]
[370392803,1751992253689,-1886.3,0.00024109,2]
[370392804,1751992253699,-2050.81,0.00024109,2]
[370392805,1751992253709,-896.86,0.00024109,2]
[370392806,1751992253718,-829.92,0.00024109,2]
[370392807,1751992253728,-1118.24,0.00024109,2]
[370392808,1751992253738,-460.0,0.00024109,2]
[370392809,1751992253748,-1411.62,0.00024109,2]
[370392810,1751992253758,-189.82482028,0.00024109,2]
[370392811,1751992253768,-460.0,0.00024109,2]
[370392812,1751992253779,-883.03,0.00024109,2]
[370392813,1751992253789,-1611.14,0.00024117,7]
[370392814,1751992253799,-221.0,0.00024164,7]
[370392815,1751992253808,-1246.82,0.00024165,2]
[370392816,1751992253819,-612.3,0.00024165,2]
[370392817,1751992253833,-938.89,0.00024165,2]
[370392818,1751992253843,-485.05,0.00024165,2]
[370392819,1751992253853,-2087.06,0.00024165,2]
[370392820,1751992253862,-460.0,0.00024165,2]
[370392821,1751992253874,-862.67,0.00024165,2]
[370392822,1751992253884,-258.969165,0.00024191,4]
[370392823,1751992253894,-1611.14,0.00024217,7]
[370392824,1751992253905,-1870.00093232,0.00024245,10]
[370392825,1751992253915,-150.0,0.00024264,2]
[370392826,1751992253925,-151.0,0.000243,7]
[370392827,1751992253936,-1611.14,0.00024317,3]
[370392828,1751992253946,-652.0,0.00024348,2]
[370392829,1751992253956,-681.56,0.00024383,2]
[370392830,1751992253965,-460.0,0.00024383,2]
[370392831,1751992253975,-460.0,0.00024383,2]
[370392832,1751992253985,-1434.78,0.00024383,2]
[370392833,1751992253995,-1457.81,0.00024383,2]
[370392834,1751992254005,-1784.73,0.00024383,2]
[370392835,1751992254015,-587.43,0.00024383,2]
[370392836,1751992254026,-2716.87,0.00024383,2]
[370392837,1751992254036,-629.94,0.00024383,2]
[370392838,1751992254046,-549.3,0.00024383,2]
[370392839,1751992254055,-461.84,0.00024383,2]
[370392840,1751992254066,-1648.56,0.00024383,2]
[370392841,1751992254078,-460.0,0.00024383,2]
[370392842,1751992254088,-469.4,0.00024383,2]
[370392843,1751992254098,-1886.3,0.00024383,2]
[370392844,1751992254108,-2050.81,0.00024383,2]
[370392845,1751992254117,-896.86,0.00024383,2]
[370392846,1751992254127,-829.92,0.00024383,2]
[370392847,1751992254136,-1118.24,0.00024383,2]
[370392848,1751992254146,-460.0,0.00024383,2]
[370392849,1751992254157,-1411.62,0.00024383,2]
[370392850,1751992254167,-460.0,0.00024383,2]
[370392851,1751992254178,-883.03,0.00024383,2]
[370392852,1751992254190,-223.0315306,0.00024415,2]
[370392853,1751992254199,-1611.14,0.00024417,3]
[370392854,1751992254208,-1246.82,0.00024439,2]
[370392855,1751992254218,-612.3,0.00024439,2]
[370392856,1751992254228,-938.89,0.00024439,2]
[370392857,1751992254239,-485.05,0.00024439,2]
[370392858,1751992254248,-2087.06,0.00024439,2]
[370392859,1751992254258,-460.0,0.00024439,2]
[370392860,1751992254270,-862.67,0.00024439,2]
[370392861,1751992254280,-1870.00093232,0.00024452,11]
[370392862,1751992254291,-652.0,0.00024463,2]
[370392863,1751992254300,-168.0,0.00024491,2]
[370392864,1751992254311,-2153.0,0.00024496,2]
[370392865,1751992254320,-646.0,0.00024496,2]
[370392866,1751992254330,-407.0,0.00024496,2]
[370392867,1751992254339,-967.0,0.00024496,2]
[370392868,1751992254349,-154.28997107,0.000245,2]
[370392869,1751992254358,-1611.14,0.00024517,7]
[370392870,1751992254367,-56132.68152246,0.0002452,11]
[370392871,1751992254558,-2920.15185449,0.0002452,11]
[370392872,1751992254573,-3176.80957824,0.0002452,11]
[370392873,1751992319643,4293.42,0.00027397,120]
[370392874,1751992386377,1048.839837,0.00018175,2]
[370392876,1751992544734,331.18828723,0.00018077,2]
[370392877,1751992544756,5580.51303857,0.00018077,2]
[370392878,1751992599849,165.111007,0.00018054,2]
[370392879,1751992599960,165.111007,0.00018099,2]
[370392880,1751992600160,165.111007,0.00018144,2]
[370392881,1751992600379,165.111007,0.00018189,2]
[370392882,1751992600574,165.111007,0.00018234,2]
[370392883,1751992619330,3593.93192643,0.0001815,2]
[370392884,1751992619353,10000.0,0.0001815,2]
[370392885,1751992619375,10000.0,0.0001815,2]
[370392886,1751992619402,94808.64188507,0.0001815,2]
[370392896,1751992834906,393.12729,0.00027,120]
[370392897,1751992852693,24900.0,0.00018052,2]
[370392898,1751992890396,241.03166397,0.00018031,2]
[370392903,1751992947657,1556.92074466,0.00027397,120]
[370392904,1751992947725,150.5,0.00021908,120]
[370392905,1751992948196,288.86,0.00021898,120]
[370392906,1751992948568,1005.0,0.00021908,120]
[370392907,1751992949004,1005.0,0.00021898,120]
[370392908,1751992949454,1005.0,0.00021888,120]
[370392909,1751992949893,1005.0,0.0002468,120]
[370392910,1751992950343,1005.0,0.0002467,120]
[370392911,1751992950789,1005.0,0.0002466,120]
[370392912,1751992951756,1005.0,0.00024885,120]
[370392913,1751992952293,1005.0,0.00024875,120]
[370392914,1751992952433,1005.0,0.00025318,120]
[370392915,1751992952841,1007.66,0.00025308,120]
[370392917,1751993013403,200.0,0.00024817,120]
[370392918,1751993020495,184.0011466,0.00025343,120]
[370392919,1751993025948,205.42750709,0.00025343,120]
[370392920,1751993028829,171.56536748,0.00025343,120]
[370392922,1751993050081,500.0,0.00025328,60]
[370392923,1751993050325,500.0,0.00025328,60]
[370392924,1751993050581,500.0,0.00025328,60]
[370392925,1751993050836,500.0,0.00025328,60]
[370392926,1751993051110,500.0,0.00025328,60]
[370392927,1751993051367,500.0,0.00025328,60]
[370392928,1751993051612,500.0,0.00025328,60]
[370392929,1751993051858,500.0,0.00025328,60]
[370392930,1751993052118,187.59440325,0.00025328,60]
[370392934,1751993075992,541.2286203,0.00018062,2]
[370392938,1751993103564,2111.0,0.00025343,60]
[370392939,1751993104015,2115.0,0.00025343,60]
[370392940,1751993104447,2111.0,0.00025343,60]
[370392941,1751993105047,2111.0,0.00025343,60]
[370392943,1751993105697,2111.0,0.00025343,60]
[370392944,1751993109556,551.0,0.00025343,60]
[370392945,1751993141127,184.00114661,0.00025343,120]
[370392946,1751993143742,205.42750708,0.00025343,120]
[370392947,1751993146538,171.56536748,0.00025343,120]
[370392948,1751993159069,153.0,0.00024,120]
[370392949,1751993167027,507.528535,0.00027397,120]
[370392950,1751993180566,3862.4241009,0.00018023,2]
[370392951,1751993183535,166.0,0.00018023,2]
[370392952,1751993210003,1000.0,0.00027397,120]
[370392954,1751993221424,1045.31139806,0.00027397,120]
[370392957,1751993250792,200.0,0.0002681,120]
[370392958,1751993262197,184.0011466,0.00025343,120]
[370392960,1751993308108,150.5,0.00021908,120]
[370392961,1751993308616,291.94,0.00021898,120]
[370392962,1751993310476,200.0,0.00025966,120]
[370392964,1751993370763,200.0,0.000271,120]
[370392965,1751993372720,524.44366336,0.000222,69]
[370392966,1751993377622,524.44366335,0.000222,69]
[370392967,1751993382615,524.44366335,0.000222,69]
[370392968,1751993387603,524.44366335,0.00023653,75]
[370392970,1751993426341,10000.0,0.0001802,2]
[370393024,1751993434984,200.0,0.00027,120]
[370393033,1751993437694,-654.86091982,0.00018501,2]
[370393034,1751993437748,-1267.36140284,0.00018501,2]
[370393035,1751993437803,-3077.77767734,0.00018501,2]
[370393036,1751993437816,-1200.0,0.00018974,2]
[370393037,1751993437828,-300.0,0.00018975,2]
[370393039,1751993437839,-287.0,0.00018975,2]
[370393040,1751993437851,-19.11293362,0.00018975,2]
[370393041,1751993437867,-280.88706638,0.00018975,2]
[370393042,1751993437878,-300.0,0.00018975,2]
[370393043,1751993437891,-1136.11192178,0.00018976,2]
[370393047,1751993438389,-63.88807822,0.00018976,2]
[370393048,1751993438401,-1760.29084546,0.00018976,2]
[370393049,1751993438442,-290.84528254,0.00018976,2]
[370393050,1751993438454,-13253.68695915,0.00018978,2]
[370393051,1751993438465,-286.22786895,0.00019039,2]
[370393052,1751993438475,-253.78905653,0.00019055,2]
[370393053,1751993438486,-246.4,0.00019057,2]
[370393054,1751993438497,-500.0,0.00019062,2]
[370393055,1751993438509,-500.0,0.00019062,2]
[370393056,1751993438521,-500.0,0.00019062,2]
[370393057,1751993438533,-500.0,0.00019062,2]
[370393058,1751993438544,-500.0,0.00019062,2]
[370393059,1751993438555,-500.0,0.00019062,2]
[370393060,1751993438566,-500.0,0.00019062,2]
[370393061,1751993438575,-200.0,0.00019062,2]
[370393062,1751993438585,-500.0,0.00019062,2]
[370393063,1751993438596,-500.0,0.00019062,2]
[370393064,1751993438607,-500.0,0.00019062,2]